bitfinex/quotes_ETHUSD_20260302
["timestamp","ask_amount","ask_price","bid_price","bid_amount"]
[1772409602054,2.15964663,1940.6,1940.0,2.1972259]
[1772409602527,2.15964663,1940.6,1939.9,0.001]
[1772409602929,2.15964663,1940.6,1939.9,2.1982259]
[1772409603129,0.002,1940.6,1939.9,2.1982259]
[1772409603747,2.15964663,1940.6,1939.9,2.1982259]
[1772409604128,1.85908734,1940.8,1940.0,2.1972259]
[1772409604329,0.002,1940.8,1940.0,2.1972259]
[1772409604549,1.85632109,1940.8,1940.0,2.1972259]
[1772409604752,0.002,1940.8,1940.1,2.47635025]
[1772409604931,0.002,1940.8,1940.2,2.1972259]
[1772409605127,1.85632109,1940.8,1940.2,2.1972259]
[1772409605339,1.85632109,1940.8,1940.0,2.1972259]
[1772409605541,1.85632109,1940.8,1939.9,0.001]
[1772409605742,1.91516547,1940.6,1939.9,0.001]
[1772409606056,1.91516547,1940.6,1939.8,0.001]
[1772409606259,1.91516547,1940.6,1939.8,3.48697531]
[1772409606654,3.19956443,1940.6,1939.9,2.1972259]
[1772409606841,1.28831082,1940.6,1939.9,2.1972259]
[1772409607039,0.002,1940.8,1939.9,2.1972259]
[1772409607443,1.91125361,1940.7,1940.0,0.0011]
[1772409607638,1.91125361,1940.7,1940.0,2.1983259]
[1772409607843,1.91225361,1940.7,1940.0,2.1983259]
[1772409608766,3.20049831,1940.7,1940.1,3.48581927]
[1772409609060,0.001,1940.7,1940.2,2.1972259]
[1772409609651,0.002,1940.8,1940.2,2.1972259]
[1772409610845,0.002,1940.8,1940.4,2.1972259]
[1772409611358,1.90164173,1940.8,1940.2,1.288515]
[1772409611667,1.90164173,1940.8,1940.1,1.28854871]
[1772409612573,1.90164173,1940.8,1940.0,0.0011]
[1772409612866,1.89387731,1940.6,1940.0,0.0011]
[1772409613101,1.89387731,1940.6,1939.9,0.0011]
[1772409613239,1.89277731,1940.4,1939.9,0.0011]
[1772409613836,1.89277731,1940.4,1939.7,0.001]
[1772409614451,1.89277731,1940.4,1939.7,0.0031]
[1772409615050,1.88763966,1940.2,1939.7,0.0031]
[1772409616270,1.88763966,1940.2,1939.7,0.001]
[1772409617036,1.87905381,1940.0,1939.7,0.001]
[1772409617282,0.55440529,1940.0,1939.7,0.001]
[1772409618446,1.28859337,1940.1,1939.7,0.0031]
[1772409618768,0.59307122,1940.0,1939.7,0.0031]
[1772409618982,1.28879265,1939.8,1939.4,0.001]
[1772409619272,0.58997122,1939.7,1939.3,0.001]
[1772409620666,0.58997122,1939.7,1939.5,0.001]
[1772409620881,0.58619609,1939.8,1939.5,0.001]
[1772409621051,1.2888591,1939.7,1939.5,0.001]
[1772409621235,0.58619609,1939.7,1939.5,0.001]
[1772409621740,0.58619609,1939.7,1939.3,0.001]
[1772409623246,1.87510121,1939.7,1939.3,0.001]
[1772409624077,1.87510121,1939.7,1939.2,0.001]
[1772409624078,0.58019615,1939.6,1939.2,0.001]
[1772409624250,0.58019615,1939.6,1939.1,0.001]
[1772409624667,0.57717975,1939.9,1939.1,2.10770074]
[1772409625350,1.28879265,1939.8,1939.2,3.39589215]
[1772409625592,1.86401129,1939.8,1939.2,3.39589215]
[1772409625773,0.57521864,1939.7,1939.2,2.10670074]
[1772409625970,0.57521864,1939.7,1939.1,0.001]
[1772409627346,0.57318023,1939.5,1939.1,0.001]
[1772409627954,2.23118023,1939.5,1939.1,0.001]
[1772409628152,0.57112998,1939.4,1939.1,0.001]
[1772409629392,1.86024403,1939.4,1939.1,0.001]
[1772409629572,1.28911405,1939.4,1938.8,0.0011]
[1772409629877,0.66936657,1939.3,1938.8,0.0011]
[1772409630111,0.66936657,1939.3,1938.8,3.3972473]
[1772409630952,0.66936657,1939.3,1938.8,0.0011]
[1772409631589,1.28919141,1939.2,1938.8,0.0011]
[1772409631796,1.95854288,1939.3,1938.8,0.0011]
[1772409631998,1.95854288,1939.3,1938.8,2.10780074]
[1772409632399,1.658,1939.5,1939.2,0.001]
[1772409632400,3.61557911,1939.5,1939.2,0.001]
[1772409633082,1.658,1939.5,1939.2,2.10770074]
[1772409633277,3.13529993,1939.9,1939.2,2.10770074]
[1772409633477,1.18,1939.9,1939.2,2.10770074]
[1772409633692,1.18,1939.9,1939.4,2.10670074]
[1772409634405,0.00153886,1940.0,1939.4,2.10670074]
[1772409635502,0.66044355,1939.9,1939.3,1.28912494]
[1772409635802,1.94919799,1939.9,1939.3,1.28912494]
[1772409635998,1.94919799,1939.9,1939.2,3.39684438]
[1772409636176,1.94919799,1939.9,1939.2,3.39689179]
[1772409637309,0.65840395,1939.8,1939.2,3.39689089]
[1772409637471,0.65840395,1939.8,1939.2,2.10770074]
[1772409637812,1.2888591,1939.7,1939.2,3.39688106]
[1772409638300,1.2888591,1939.7,1939.2,3.39689071]
[1772409638712,1.2888591,1939.7,1939.2,2.10770074]
[1772409638899,1.94315402,1939.7,1939.2,0.001]
[1772409639281,1.94315402,1939.7,1939.2,1.29018413]
[1772409639787,1.94315402,1939.7,1939.2,0.001]
[1772409641100,2.31216959,1939.6,1939.2,0.001]
[1772409641303,0.65016959,1939.5,1939.2,0.001]
[1772409642308,1.93919865,1939.5,1939.2,0.001]
[1772409642617,0.62986714,1939.4,1939.2,0.001]
[1772409644614,1.28912494,1939.3,1939.2,0.001]
[1772409644913,0.60990798,1939.2,1938.9,0.001]
[1772409645102,0.60890798,1939.0,1938.6,0.0011]
[1772409645303,2.27290798,1939.1,1938.7,0.001]
[1772409645622,0.59905871,1939.0,1938.7,0.001]
[1772409646020,1.664,1939.1,1938.7,2.10770074]
[1772409646221,0.001,1939.3,1938.7,2.10770074]
[1772409646387,0.001,1939.3,1938.9,2.10670074]
[1772409646586,0.001,1939.3,1939.0,2.10670074]
[1772409646799,0.001,1939.3,1939.0,2.10770074]
[1772409647198,1.56678812,1939.4,1939.0,2.10770074]
[1772409648118,0.57341413,1939.6,1939.0,0.001]
[1772409648821,1.288992,1939.5,1939.0,0.001]
[1772409649688,1.86237158,1939.6,1939.0,0.001]
[1772409650818,1.83703193,1939.4,1939.0,0.001]
[1772409651007,1.28905847,1939.4,1939.0,0.001]
[1772409651213,1.28904479,1939.5,1939.0,2.13918462]
[1772409651413,1.2888591,1939.7,1939.0,2.13918462]
[1772409652121,1.82752943,1939.7,1939.0,2.13918462]
[1772409652523,1.2902096,1940.0,1939.0,2.13918462]
[1772409652700,1.29021709,1940.0,1939.1,2.13818462]
[1772409652905,0.52942817,1939.9,1939.1,3.42740458]
[1772409653501,0.52942817,1939.9,1939.2,2.13818462]
[1772409653700,0.83653886,1940.0,1939.2,2.13918462]
[1772409654555,1.34776415,1940.0,1939.2,2.13918462]
[1772409654704,0.51122529,1939.9,1939.2,2.13918462]
[1772409655035,1.28879265,1939.8,1939.3,2.13818462]
[1772409656315,1.28879265,1939.8,1939.4,0.001]
[1772409656515,0.49332349,1939.7,1939.1,2.13818462]
[1772409656828,1.28892555,1939.6,1939.1,0.0021]
[1772409657029,2.16532349,1939.5,1939.1,0.0021]
[1772409657207,0.49332349,1939.4,1939.1,0.0011]
[1772409657612,0.49332349,1939.4,1938.8,0.0011]
[1772409657815,0.49332349,1939.4,1938.8,0.0021]
[1772409659030,0.47571498,1939.2,1938.8,0.0021]
[1772409659202,1.28912494,1939.3,1938.8,0.0021]
[1772409660331,6.82799703,1939.5,1938.8,2.14028462]
[1772409660332,1.672,1939.5,1938.8,2.14028462]
[1772409660520,2.96275707,1939.9,1938.8,2.14028462]
[1772409660905,2.96275707,1939.9,1939.0,2.13818462]
[1772409661234,2.96272635,1939.9,1939.0,2.13818462]
[1772409661431,1.674,1939.9,1939.2,2.13818462]
[1772409661929,2.9627276,1939.9,1939.3,0.001]
[1772409662134,2.9627276,1939.9,1939.3,2.13918462]
[1772409662534,3.40414253,1939.9,1939.3,0.001]
[1772409662850,3.40414253,1939.9,1938.8,0.0011]
[1772409662851,0.44141493,1939.8,1938.8,0.0011]
[1772409663037,0.44141493,1939.6,1939.0,0.001]
[1772409664434,1.2888591,1939.7,1939.0,2.13918462]
[1772409665224,1.28879265,1939.8,1939.2,2.13818462]
[1772409666738,1.674,1939.9,1939.4,2.13818462]
[1772409667110,0.002,1940.1,1939.8,2.13818462]
[1772409667438,0.002,1940.2,1939.8,2.13818462]
[1772409667626,0.002,1940.2,1939.9,0.001]
[1772409671148,0.002,1940.2,1939.4,2.13818462]
[1772409671149,0.3791016,1940.2,1939.4,2.13818462]
[1772409671718,1.28859337,1940.1,1939.5,2.13818462]
[1772409672923,1.28859337,1940.1,1939.6,0.001]
[1772409672924,0.3613796,1940.0,1939.6,0.001]
[1772409673130,1.681,1939.9,1939.4,0.001]
[1772409673445,0.002,1940.2,1939.4,2.13918462]
[1772409673649,0.002,1940.2,1939.6,2.03157523]
[1772409673851,1.42404552,1940.3,1939.6,2.03157523]
[1772409674054,1.42404552,1940.3,1939.8,2.03157523]
[1772409674536,2.71251507,1940.3,1939.9,0.001]
[1772409674856,1.42404552,1940.3,1939.9,0.001]
[1772409675033,2.71250985,1940.3,1939.9,2.03257523]
[1772409675236,1.42404552,1940.3,1939.9,2.03257523]
[1772409675442,2.71252137,1940.3,1939.9,2.03257523]
[1772409675660,2.71252137,1940.3,1939.6,2.03157523]
[1772409676336,0.34335685,1940.2,1939.3,3.32064594]
[1772409676540,0.34335685,1940.2,1939.4,2.03157523]
[1772409676744,2.71252137,1940.3,1939.4,2.03157523]
[1772409677748,2.71252137,1940.3,1939.6,1.98817314]
[1772409680677,0.001,1940.2,1939.6,1.98817314]
[1772409680843,0.001,1940.2,1939.7,1.98817314]
[1772409681040,0.30296849,1940.2,1939.5,1.98817314]
[1772409681245,0.001,1940.2,1939.5,1.98817314]
[1772409682047,0.29576397,1940.2,1939.5,1.98817314]
[1772409682264,1.58335734,1940.1,1939.5,1.98817314]
[1772409682562,1.58335734,1940.1,1939.3,1.98817314]
[1772409682869,0.28760278,1940.0,1939.2,1.98817314]
[1772409683937,0.28760278,1940.0,1939.1,0.0011]
[1772409684339,0.28049406,1939.8,1939.1,1.98927314]
[1772409684539,1.68,1939.8,1939.1,1.98927314]
[1772409684863,1.28870024,1940.0,1939.3,1.98817314]
[1772409685357,1.28955828,1940.2,1939.3,2.02732082]
[1772409685542,1.28955828,1940.2,1939.3,1.98817314]
[1772409687662,0.001,1940.2,1939.5,1.98817314]
[1772409688077,0.25362098,1940.2,1939.5,1.98817314]
[1772409688368,0.25362098,1940.2,1939.3,1.98817314]
[1772409688662,0.25362098,1940.2,1939.2,1.98817314]
[1772409688857,0.001,1940.2,1939.2,1.98817314]
[1772409689634,0.001,1940.2,1939.4,1.98817314]
[1772409689833,0.24000865,1940.2,1939.4,1.98817314]
[1772409690231,0.24000865,1940.2,1939.2,3.27731502]
[1772409690431,0.24000865,1940.2,1939.2,3.27736333]
[1772409690857,0.24000865,1940.2,1939.2,1.98817314]
[1772409691364,0.24000865,1940.2,1939.3,1.98817314]
[1772409691738,1.28859337,1940.1,1939.4,1.98817314]
[1772409691930,1.681,1940.0,1939.4,1.98817314]
[1772409692471,1.681,1940.0,1939.4,1.98927314]
[1772409692945,1.8999579,1940.0,1939.4,0.0011]
[1772409693370,1.8999579,1940.0,1939.4,1.98927314]
[1772409693665,1.681,1940.0,1939.4,1.98927314]
[1772409693876,1.28872622,1939.9,1939.4,1.98927314]
[1772409694239,1.28872622,1939.9,1939.5,1.98817314]
[1772409696072,2.96970731,1940.0,1939.5,3.2771644]
[1772409696240,2.96970731,1940.0,1939.5,1.98817314]
[1772409696441,2.96966713,1940.0,1939.5,3.27713868]
[1772409696741,0.21337221,1940.2,1939.5,3.27713868]
[1772409696742,0.001,1940.2,1939.6,1.98817314]
[1772409698362,0.001,1940.2,1939.8,1.98817314]
[1772409700448,0.001,1940.2,1940.0,1.98817314]
[1772409701556,0.001,1940.2,1939.8,3.27691838]
[1772409703374,0.001,1940.2,1939.8,1.98817314]
[1772409703677,0.001,1940.2,1939.9,1.98817314]
[1772409703863,0.002,1940.4,1939.9,1.98817314]
[1772409704479,0.001,1940.1,1939.9,1.98817314]
[1772409704646,0.001,1940.1,1939.9,3.27684769]
[1772409706084,0.001,1940.1,1940.0,1.98817314]
[1772409707591,0.001,1940.1,1939.8,1.80510521]
[1772409708265,0.001,1940.1,1939.6,3.09403076]
[1772409708468,0.001,1940.1,1939.7,1.80510521]
[1772409708863,0.002,1940.4,1939.7,1.80510521]
[1772409710964,0.002,1940.4,1939.9,1.80510521]
[1772409713093,0.002,1940.4,1940.0,3.093765]
[1772409714093,0.002,1940.4,1940.1,1.80510521]
[1772409714775,0.002,1940.5,1940.1,1.80510521]
[1772409715361,0.002,1940.5,1939.5,0.0011]
[1772409715362,1.83862602,1940.5,1939.5,0.0011]
[1772409716566,1.82738191,1940.2,1939.5,0.0011]
[1772409716761,1.82738191,1940.0,1939.5,0.0011]
[1772409717305,3.11610813,1939.9,1939.8,0.001]
[1772409718004,3.11610813,1939.9,1939.5,0.0011]
[1772409718240,1.28870839,1940.0,1939.5,0.0011]
[1772409718368,1.28870839,1940.0,1939.5,1.80620521]
[1772409718569,3.10693078,1940.0,1939.5,0.0011]
[1772409720895,4.77081842,1940.1,1939.5,1.80620521]
[1772409721209,4.77081842,1940.1,1939.5,0.0011]
[1772409721210,1.80917653,1940.0,1939.5,0.0011]
[1772409721534,1.80917653,1940.0,1939.2,0.0011]
[1772409721687,1.80917653,1940.0,1939.0,0.00263886]
[1772409721688,1.80468063,1939.8,1939.0,0.00263886]
[1772409723995,1.79592974,1939.6,1939.0,0.00263886]
[1772409724225,1.676,1939.5,1939.0,0.00263886]
[1772409724835,1.79151098,1939.4,1939.0,0.00263886]
[1772409724998,1.676,1939.5,1939.0,0.00263886]
[1772409725748,1.78710579,1939.4,1939.0,0.00263886]
[1772409725915,3.07623073,1939.3,1939.0,0.00263886]
[1772409727306,1.78272583,1939.2,1939.0,0.00263886]
[1772409727829,1.28912494,1939.3,1939.0,0.00263886]
[1772409728733,1.77402153,1939.3,1939.1,0.0011]
[1772409729733,1.77402153,1939.3,1938.8,0.0011]
[1772409729939,1.77402153,1939.3,1938.6,0.0011]
[1772409730701,1.76431145,1939.1,1938.4,0.0011]
[1772409730906,3.44431145,1939.0,1938.4,0.0011]
[1772409731904,1.76019557,1938.9,1938.4,0.0011]
[1772409732625,1.75598423,1938.7,1938.4,0.0011]
[1772409732999,1.75598423,1938.5,1938.2,0.0011]
[1772409733729,1.28912494,1939.3,1938.2,1.71368487]
[1772409734520,3.0318732,1939.3,1938.2,1.71368487]
[1772409734716,3.0318732,1939.3,1938.4,1.71258487]
[1772409734931,1.28912494,1939.3,1938.4,1.71258487]
[1772409735819,3.03122808,1939.3,1938.4,1.71258487]
[1772409736116,3.03102869,1939.6,1938.4,1.71258487]
[1772409736319,6.8357022,1939.7,1938.6,1.71258487]
[1772409736320,1.28986815,1939.7,1938.6,1.71258487]
[1772409736518,0.001,1939.7,1938.6,1.71258487]
[1772409736748,0.001,1939.7,1938.9,1.71258487]
[1772409736900,1.29022985,1940.0,1938.9,1.71258487]
[1772409737111,1.29022985,1940.0,1938.9,1.76458855]
[1772409737112,0.00153886,1940.0,1938.9,1.76458855]
[1772409737744,1.73506494,1940.0,1938.9,1.76458855]
[1772409738739,1.28872622,1939.9,1939.1,1.76458855]
[1772409740339,3.01414526,1939.9,1939.1,1.76458855]
[1772409740734,3.01414526,1939.9,1939.1,3.05378356]
[1772409741032,3.01514526,1939.9,1939.1,3.05378356]
[1772409742746,0.002,1940.3,1939.3,1.76458855]
[1772409743045,1.71538559,1940.3,1939.4,1.76458855]
[1772409743446,0.002,1940.3,1939.4,1.76458855]
[1772409743618,0.002,1940.5,1939.4,1.76458855]
[1772409743822,1.29026176,1940.6,1939.7,1.76458855]
[1772409744123,0.002,1940.6,1939.7,1.76458855]
[1772409744863,0.002,1940.6,1939.9,1.76458855]
[1772409745065,0.002,1940.6,1940.2,1.76458855]
[1772409745534,0.002,1940.8,1940.2,1.76458855]
[1772409746542,1.28791611,1941.2,1940.3,1.76458855]
[1772409746764,5.14968909,1941.9,1940.5,1.76458855]
[1772409747063,5.14968909,1941.9,1940.7,1.76458855]
[1772409747260,5.14968909,1941.9,1940.8,1.76458855]
[1772409747836,4.94968909,1941.9,1940.8,1.76458855]
[1772409748238,1.68212555,1942.0,1940.8,1.76458855]
[1772409748462,0.39475301,1942.0,1940.8,1.76458855]
[1772409748656,1.68209508,1942.0,1940.8,1.76458855]
[1772409748855,0.39475301,1942.0,1940.9,0.065536]
[1772409749060,1.68209507,1942.0,1941.1,1.76458855]
[1772409749263,0.39475301,1942.0,1941.1,1.76458855]
[1772409749566,1.68209065,1942.0,1941.1,3.53158855]
[1772409749764,1.68209065,1942.0,1941.2,1.76458855]
[1772409750159,0.39475301,1942.0,1941.2,1.76458855]
[1772409750466,1.682094,1942.0,1941.2,1.76458855]
[1772409750671,0.39475301,1942.0,1941.2,1.76458855]
[1772409750857,1.68208801,1942.0,1941.2,1.76458855]
[1772409751054,1.68208741,1942.0,1941.4,1.76458855]
[1772409751255,0.39475301,1942.0,1941.4,1.76458855]
[1772409751450,1.68208682,1942.0,1941.4,1.76458855]
[1772409751772,0.39475301,1942.0,1941.4,1.76458855]
[1772409751956,1.68209462,1942.0,1941.4,1.76458855]
[1772409752752,1.68208845,1942.0,1941.4,1.76458855]
[1772409752953,0.39475301,1942.0,1941.4,1.76458855]
[1772409754073,0.001,1941.9,1941.5,3.05225272]
[1772409755171,0.001,1941.9,1941.5,1.76458855]
[1772409756148,0.001,1941.9,1941.6,1.28759785]
[1772409756454,0.001,1941.9,1941.6,3.0521864]
[1772409756866,0.001,1941.9,1941.6,1.76458855]
[1772409758977,0.001,1941.9,1941.6,3.05218397]
[1772409759154,1.7025322,1942.4,1941.6,3.05218397]
[1772409759155,1.28673632,1942.9,1941.8,1.76458855]
[1772409760048,2.95438603,1942.9,1942.0,1.76458855]
[1772409760247,1.66764971,1942.8,1942.0,3.05191982]
[1772409760859,1.66764971,1942.8,1942.1,1.76458855]
[1772409762205,2.9586859,1942.7,1941.9,1.28736587]
[1772409762348,2.9586859,1942.7,1941.6,3.04956932]
[1772409762349,1.67181711,1942.5,1941.6,3.04956932]
[1772409762660,1.67181711,1942.5,1941.6,4.81415787]
[1772409762981,1.28673632,1942.9,1941.7,1.76458855]
[1772409763181,0.00153886,1943.0,1941.7,1.76458855]
[1772409763346,2.95624019,1943.0,1941.8,1.762]
[1772409763547,2.95624019,1943.0,1941.9,1.76458855]
[1772409763752,1.66425768,1942.9,1941.9,1.76458855]
[1772409763972,1.667,1942.9,1941.9,1.76458855]
[1772409764176,1.28686879,1942.7,1941.9,3.05196008]
[1772409764684,2.94738737,1942.7,1941.9,3.05196008]
[1772409764850,1.66051858,1942.6,1941.6,1.76458855]
[1772409766361,1.28700128,1942.5,1941.7,3.05212009]
[1772409766877,1.28700128,1942.5,1941.5,0.001]
[1772409766878,1.65307708,1942.3,1941.5,0.001]
[1772409768248,1.28720008,1942.2,1941.5,1.77471021]
[1772409768448,2.93189308,1942.2,1941.5,1.77471021]
[1772409768876,2.93189308,1942.2,1941.5,0.001]
[1772409769284,1.644693,1942.1,1941.5,0.001]
[1772409770659,1.63741647,1941.9,1941.4,0.001]
[1772409770863,1.63741647,1941.9,1941.3,1.90307317]
[1772409770864,1.63741647,1941.8,1941.3,1.90307317]
[1772409771080,1.63741647,1941.8,1941.2,0.001]
[1772409771652,1.63741647,1941.8,1940.1,4.51078919]
[1772409771854,1.63280275,1941.6,1940.1,4.51078919]
[1772409772266,1.63280275,1941.6,1940.1,9.66515357]
[1772409772464,1.63280275,1941.6,1940.1,5.79934931]
[1772409772787,1.66711036,1941.4,1940.1,5.79934931]
[1772409772985,1.66711036,1941.2,1940.1,5.79938001]
[1772409774284,1.667,1941.3,1940.3,1.77371021]
[1772409774489,1.28766417,1941.5,1940.7,1.77371021]
[1772409774782,5.1506567,1941.6,1940.8,1.2881286]
[1772409775081,5.1506567,1941.6,1940.7,3.06185504]
[1772409775492,2.95455485,1941.7,1941.0,1.77524907]
[1772409776866,2.95455485,1941.7,1941.0,3.06320254]
[1772409777066,2.95454182,1941.7,1941.1,1.77371021]
[1772409777996,1.668,1942.1,1941.1,1.77371021]
[1772409779058,1.28733264,1942.0,1941.3,1.77371021]
[1772409780265,1.64184833,1941.9,1941.1,0.001]
[1772409781393,1.63830089,1941.5,1941.1,0.001]
[1772409781582,3.30630089,1941.5,1941.0,0.00253886]
[1772409782678,3.30630089,1941.5,1940.8,0.001]
[1772409783708,1.2877305,1941.4,1940.8,0.001]
[1772409784299,1.62679046,1941.3,1940.8,0.001]
[1772409784710,1.62679046,1941.3,1940.0,3.06385979]
[1772409784878,1.62679046,1941.3,1940.1,1.77371021]
[1772409785583,1.61992778,1941.1,1940.1,3.06227552]
[1772409785782,1.668,1941.0,1940.1,3.06227552]
[1772409786012,1.668,1941.0,1940.2,1.77371021]
[1772409786611,1.668,1941.0,1940.4,1.77371021]
[1772409787286,1.28784842,1941.3,1940.4,1.77371021]
[1772409787483,2.95578183,1941.4,1940.5,1.77371021]
[1772409787790,2.95578183,1941.4,1940.7,1.77371021]
[1772409789607,2.95578183,1941.4,1940.8,1.2881286]
[1772409791013,2.95578183,1941.4,1940.8,3.06183881]
[1772409791312,2.9557315,1941.4,1940.9,1.77371021]
[1772409791695,2.9557315,1941.4,1940.9,1.77471021]
[1772409792096,2.9577315,1941.4,1940.9,1.77471021]
[1772409792525,0.002,1941.5,1941.0,1.77371021]
[1772409793019,0.002,1941.7,1941.1,1.77371021]
[1772409793384,0.002,1941.7,1940.9,1.28905248]
[1772409793385,1.59692372,1941.7,1940.9,1.28905248]
[1772409793607,1.59692372,1941.7,1940.9,3.044984]
[1772409793818,1.28759785,1941.6,1941.0,1.75593152]
[1772409794120,0.002,1941.7,1941.0,1.75593152]
[1772409794923,1.28954587,1941.7,1941.0,1.75593152]
[1772409795220,0.002,1941.7,1941.0,1.75593152]
[1772409795589,0.00153886,1942.0,1941.1,1.75593152]
[1772409795788,0.00153886,1942.0,1941.5,1.75593152]
[1772409796184,0.00153886,1942.0,1941.4,1.2877305]
[1772409796185,1.58919306,1942.0,1941.2,1.75593152]
[1772409796800,1.58919306,1942.0,1941.0,1.28796067]
[1772409796987,1.58919306,1942.0,1941.0,3.04389219]
[1772409797422,1.58116188,1941.8,1940.9,0.001]
[1772409797640,1.57946937,1941.6,1940.8,0.001]
[1772409797788,1.57946937,1941.4,1940.8,0.001]
[1772409799902,1.57302678,1941.2,1940.8,0.001]
[1772409800223,1.666,1941.1,1940.8,0.001]
[1772409803323,8.3875487,1941.5,1940.8,0.001]
[1772409803523,1.28778048,1941.4,1940.8,1.68778223]
[1772409803910,2.95469655,1941.5,1940.8,1.68778223]
[1772409804522,2.95469655,1941.5,1940.9,1.68678223]
[1772409804731,2.95469655,1941.5,1940.9,1.68778223]
[1772409804899,1.667,1941.5,1940.9,1.68778223]
[1772409805231,2.95466587,1941.5,1940.9,1.68778223]
[1772409805522,1.667,1941.5,1940.9,1.68778223]
[1772409806226,1.669,1941.9,1940.9,1.68778223]
[1772409806537,2.9564109,1941.9,1941.1,1.68678223]
[1772409807497,1.2894109,1941.9,1941.1,1.68678223]
[1772409807831,0.00353886,1942.0,1941.3,1.68678223]
[1772409808252,1.29088152,1942.0,1941.3,1.68678223]
[1772409808404,0.00353886,1942.0,1941.4,1.68678223]
[1772409808604,0.00353886,1942.0,1941.6,1.68678223]
[1772409808812,1.55313645,1942.0,1941.0,6.83871835]
[1772409809025,1.55313645,1942.0,1941.1,1.68678223]
[1772409810535,0.00353886,1942.0,1941.1,1.68678223]
[1772409810724,1.54704972,1942.0,1941.2,1.28786317]
[1772409811108,1.54704972,1942.0,1941.3,1.68678223]
[1772409811109,0.00353886,1942.0,1941.3,1.68678223]
[1772409812530,0.00353886,1942.0,1941.0,1.68678223]
[1772409812531,1.54092293,1942.0,1941.0,1.68678223]
[1772409812732,2.82491561,1941.7,1941.0,2.9747739]
[1772409813130,2.82491561,1941.7,1941.0,1.68678223]
[1772409813306,4.48691561,1941.7,1941.0,1.68678223]
[1772409813508,4.48691561,1941.7,1941.0,2.97477718]
[1772409813920,4.48691561,1941.7,1941.0,1.68678223]
[1772409814118,4.48691561,1941.7,1941.0,2.97477538]
[1772409815041,4.48691561,1941.7,1941.0,2.9747758]
[1772409815544,1.52829133,1941.6,1940.9,0.001]
[1772409815733,1.52829133,1941.6,1940.6,0.001]
[1772409816325,1.52829133,1941.6,1940.7,1.68678223]
[1772409816915,1.28766417,1941.5,1941.0,0.001]
[1772409817416,1.28766417,1941.5,1941.0,1.68778223]
[1772409818042,1.28760606,1941.6,1941.0,1.68778223]
[1772409818246,1.28751646,1941.8,1941.0,1.68778223]
[1772409818412,1.52136653,1941.7,1941.0,0.001]
[1772409818740,3.92029095,1941.8,1941.0,1.68778223]
[1772409819056,1.28944715,1941.9,1941.2,1.68678223]
[1772409819214,0.002,1941.9,1941.2,1.68678223]
[1772409820347,1.28940515,1941.9,1941.2,1.68678223]
[1772409820550,1.28940647,1941.9,1941.2,1.68678223]
[1772409820851,0.002,1941.9,1941.2,1.68678223]
[1772409821049,1.28940022,1941.9,1941.2,1.68678223]
[1772409821453,0.002,1941.9,1941.4,1.68678223]
[1772409824232,0.002,1941.9,1941.6,1.68678223]
[1772409824450,0.00353886,1942.0,1941.6,1.68678223]
[1772409826437,0.00353886,1942.0,1941.7,1.68678223]
[1772409828166,0.002,1942.3,1941.8,1.71635093]
[1772409828321,0.002,1942.3,1941.6,1.71635093]
[1772409828922,1.49289577,1942.3,1941.6,1.71635093]
[1772409829219,1.49289577,1942.3,1941.4,1.71735093]
[1772409829447,0.002,1941.9,1941.4,3.00507225]
[1772409829632,0.002,1941.9,1941.4,1.71735093]
[1772409830437,0.002,1941.9,1941.4,3.00507208]
[1772409830636,0.002,1941.9,1941.5,1.71635093]
[1772409832750,0.002,1941.9,1941.5,3.00400669]
[1772409832949,0.002,1941.9,1941.5,1.71635093]
[1772409833249,0.002,1941.9,1941.4,1.28871742]
[1772409833835,0.002,1941.9,1941.4,3.00506835]
[1772409835258,0.002,1941.9,1941.5,1.71635093]
[1772409836223,0.002,1942.2,1941.8,1.71635093]
[1772409836856,0.002,1942.2,1941.8,3.00378845]
[1772409837246,0.002,1942.2,1941.8,1.28743752]
[1772409837838,0.002,1942.2,1941.8,3.00378845]
[1772409838447,1.46998722,1942.2,1941.4,0.001]
[1772409838627,1.28726636,1942.1,1941.5,1.71635093]
[1772409838953,1.46523487,1942.0,1941.4,0.001]
[1772409839162,1.46523487,1941.8,1941.4,0.001]
[1772409839356,3.11323487,1941.8,1941.4,0.001]
[1772409839532,1.46523487,1941.7,1941.4,0.001]
[1772409839732,1.46523487,1941.7,1941.1,0.001]
[1772409840632,2.74736374,1941.6,1941.1,0.001]
[1772409840828,1.28759785,1941.6,1941.1,0.001]
[1772409841034,1.45976589,1941.5,1941.1,0.001]
[1772409841739,1.45976589,1941.5,1940.9,0.001]
[1772409843056,2.74112519,1941.4,1940.9,0.001]
[1772409843365,1.45339469,1941.2,1940.4,1.71635093]
[1772409843534,1.45339469,1941.2,1940.2,4.83474395]
[1772409843730,1.45339469,1941.2,1940.3,1.71635093]
[1772409844849,1.45339469,1941.2,1940.2,1.82989583]
[1772409845055,1.28792952,1941.1,1940.3,1.71635093]
[1772409845261,2.73613967,1941.1,1940.3,1.71635093]
[1772409845767,2.73613967,1941.1,1940.2,3.11841916]
[1772409845768,1.44553304,1941.0,1940.2,1.82989583]
[1772409845972,1.28792952,1941.1,1940.3,1.71635093]
[1772409847054,5.15171809,1941.2,1940.4,1.28839414]
[1772409847263,5.15171809,1941.2,1940.5,1.71635093]
[1772409848668,1.28786317,1941.2,1940.5,1.71635093]
[1772409848862,2.93584812,1941.3,1940.5,1.71635093]
[1772409849567,2.93584812,1941.3,1940.7,1.71635093]
[1772409850481,2.93584812,1941.3,1940.3,1.71635093]
[1772409850482,1.43492034,1941.2,1940.3,1.71635093]
[1772409851541,1.28792952,1941.1,1940.5,1.71635093]
[1772409852161,2.9358415,1941.3,1940.5,1.71635093]
[1772409852782,1.2878415,1941.3,1940.5,1.71635093]
[1772409853641,1.28766417,1941.5,1940.7,1.58183683]
[1772409853838,2.71178575,1941.5,1940.7,1.58183683]
[1772409854571,1.42412158,1941.4,1940.5,1.28829497]
[1772409854750,1.42412158,1941.4,1940.5,2.8701318]
[1772409854951,1.42412158,1941.4,1940.6,1.58183683]
[1772409855155,1.42412158,1941.4,1940.2,1.82989583]
[1772409855377,1.42154812,1941.3,1940.2,1.82989583]
[1772409855554,1.41898229,1940.9,1940.2,1.82989583]
[1772409856071,1.41898229,1940.9,1940.5,0.001]
[1772409857276,1.28797898,1941.1,1940.5,1.64865201]
[1772409857848,1.28797898,1941.1,1940.5,2.9369719]
[1772409858461,1.28797898,1941.1,1940.5,1.64865201]